bitfinex/quotes_SOLUSD_20251031
["timestamp","ask_amount","ask_price","bid_price","bid_amount"]
[1761918377573,8.32923297,186.91,186.85,8.32923297]
[1761918377861,8.32923297,186.91,186.85,0.72]
[1761918378080,8.32923297,186.9,186.85,0.72]
[1761918378961,8.32923297,186.9,186.86,5.35160012]
[1761918379436,8.32923297,186.9,186.86,6.07160012]
[1761918379638,5.34994679,186.92,186.83,0.28432314]
[1761918379639,8.32923297,186.88,186.83,0.28432314]
[1761918379838,4.40540933,186.96,186.83,0.28432314]
[1761918379839,8.32923297,186.9,186.83,8.61355611]
[1761918380063,0.69,186.95,186.85,8.61355611]
[1761918380238,0.69,186.95,186.87,0.28432314]
[1761918380239,6.03916192,186.95,186.87,0.28432314]
[1761918380433,8.32923297,186.93,186.87,0.28432314]
[1761918380639,8.32923297,186.93,186.87,9.33355611]
[1761918381068,1e-08,186.98,186.92,8.32923297]
[1761918381233,1e-08,186.98,186.93,8.32923297]
[1761918381435,1e-08,186.98,186.94,8.32923297]
[1761918381639,1e-08,186.98,186.93,8.32923297]
[1761918382077,1e-08,186.98,186.93,9.04923297]
[1761918382539,1e-08,186.98,186.94,0.72]
[1761918382741,9.01923297,186.97,186.9,9.04923297]
[1761918382964,8.32923297,186.97,186.92,5.3498823]
[1761918383208,1e-08,186.98,186.92,5.3498823]
[1761918383458,8.32923298,186.98,186.93,0.72]
[1761918383644,1e-08,186.98,186.93,9.33355611]
[1761918384043,1e-08,186.98,186.94,0.72]
[1761918385168,8.32923298,186.98,186.93,0.28432314]
[1761918385342,8.32923298,186.98,186.93,1.00432314]
[1761918385665,1e-08,186.98,186.93,14.39866858]
[1761918385866,1e-08,186.98,186.94,0.72]
[1761918386065,1e-08,186.98,186.97,8.32923297]
[1761918386255,1e-08,186.98,186.97,9.04923297]
[1761918386453,1e-08,186.98,186.97,19.1223838]
[1761918387070,1e-08,186.98,186.97,24.47083542]
[1761918388871,1e-08,187.05,187.0,20.592]
[1761918389059,1e-08,187.05,187.04,23.74883375]
[1761918389249,1e-08,187.06,187.05,18.4023838]
[1761918389461,1e-08,187.06,187.05,19.0623838]
[1761918389751,1e-08,187.07,187.06,10.73315083]
[1761918389952,0.2,187.15,187.09,20.592]
[1761918390174,0.2,187.15,187.14,18.4023838]
[1761918390343,0.2,187.15,187.14,19.0623838]
[1761918390762,0.2,187.16,187.15,9.78882769]
[1761918390968,0.2,187.16,187.15,19.31239141]
[1761918391156,0.2,187.16,187.15,16.32646594]
[1761918391357,0.2,187.16,187.15,24.65569891]
[1761918391565,0.2,187.16,187.15,19.31239141]
[1761918392759,0.2,187.16,187.15,8.98923297]
[1761918392953,0.2,187.16,187.15,9.27355611]
[1761918393466,0.2,187.16,187.15,10.73315083]
[1761918393656,0.2,187.16,187.15,19.0623838]
[1761918397656,1e-08,187.22,187.18,0.28432314]
[1761918397855,1e-08,187.22,187.21,20.592]
[1761918398055,1e-08,187.22,187.21,29.73971561]
[1761918398274,1e-08,187.22,187.21,30.39971561]
[1761918398880,0.2,187.27,187.22,10.73315083]
[1761918399074,0.2,187.27,187.26,18.4023838]
[1761918399275,0.2,187.27,187.26,23.74255254]
[1761918399482,0.2,187.27,187.26,24.40255254]
[1761918399784,1e-08,187.27,187.26,24.93656941]
[1761918401176,1e-08,187.27,187.26,24.40255254]
[1761918401379,1e-08,187.27,187.26,23.74255254]
[1761918401584,1e-08,187.27,187.26,24.40255254]
[1761918402186,0.70000001,187.27,187.21,9.78882769]
[1761918402373,9.02923298,187.27,187.21,8.32923297]
[1761918402702,0.70000001,187.27,187.19,8.32923297]
[1761918402871,0.7,187.26,187.2,8.32923297]
[1761918403374,8.32923297,187.24,187.15,0.66]
[1761918403579,8.32923297,187.24,187.18,8.32923297]
[1761918403890,9.02923297,187.24,187.18,8.32923297]
[1761918404092,5.34018245,187.26,187.15,21.53632314]
[1761918404093,9.02923297,187.23,187.17,8.32923297]
[1761918404292,9.02923297,187.23,187.13,5.34387858]
[1761918404293,8.32923297,187.21,187.13,5.34387858]
[1761918404466,9.02923297,187.22,187.15,8.32923297]
[1761918404660,9.02923297,187.25,187.19,8.32923297]
[1761918404865,20.592,187.24,187.2,8.32923297]
[1761918405177,20.592,187.24,187.21,0.28432314]
[1761918405371,20.592,187.24,187.21,5.6257411]
[1761918405566,20.592,187.24,187.18,13.35584357]
[1761918405567,8.32923297,187.24,187.19,0.28432314]
[1761918405791,9.02923297,187.26,187.2,8.32923297]
[1761918405993,0.7,187.25,187.2,8.32923297]
[1761918406374,8.32923297,187.26,187.2,8.32923297]
[1761918406375,8.32923297,187.26,187.2,8.98923297]
[1761918406699,28.92123298,187.27,187.21,8.32923297]
[1761918406904,0.70000001,187.27,187.22,8.32923297]
[1761918407074,1e-08,187.27,187.23,8.32923297]
[1761918407273,1e-08,187.27,187.26,8.32923297]
[1761918407479,1e-08,187.27,187.25,8.32923297]
[1761918407667,1e-08,187.27,187.24,13.66968753]
[1761918407972,0.70000001,187.27,187.23,5.6252831]
[1761918408172,1e-08,187.27,187.23,0.28432314]
[1761918408494,0.70000001,187.27,187.23,0.28432314]
[1761918408992,0.70000001,187.27,187.23,5.62534363]
[1761918409166,1e-08,187.27,187.24,8.32923297]
[1761918409366,1e-08,187.27,187.25,8.32923297]
[1761918409778,1e-08,187.27,187.25,13.66966818]
[1761918410174,1e-08,187.27,187.26,8.32923297]
[1761918410378,1e-08,187.27,187.26,9.27355611]
[1761918410587,1e-08,187.27,187.26,19.0623838]
[1761918410773,1e-08,187.27,187.26,19.59640067]
[1761918411376,1e-08,187.27,187.26,24.93656941]
[1761918413786,0.2,187.34,187.31,0.28432314]
[1761918413994,0.2,187.34,187.33,9.78882769]
[1761918414174,0.2,187.34,187.33,0.28432314]
[1761918415196,0.9,187.34,187.31,8.61355611]
[1761918415592,0.9,187.34,187.31,13.95212211]
[1761918415793,0.9,187.34,187.31,0.28432314]
[1761918415997,0.7,187.33,187.29,8.32923297]
[1761918416306,0.7,187.33,187.28,8.32923297]
[1761918416519,8.32923297,187.32,187.23,0.53410244]
[1761918416677,8.32923297,187.32,187.26,18.11806066]
[1761918416877,0.7,187.33,187.28,8.32923297]
[1761918417070,9.02923297,187.33,187.27,8.32923297]
[1761918417693,0.7,187.32,187.27,13.95335393]
[1761918417895,20.792,187.34,187.3,8.32923297]
[1761918418075,20.792,187.34,187.31,0.28432314]
[1761918418273,20.792,187.34,187.27,18.97382993]
[1761918418274,0.7,187.33,187.27,5.33979782]
[1761918418611,9.02923297,187.33,187.28,0.28432314]
[1761918418772,9.02923297,187.33,187.27,8.32923297]
[1761918418973,9.00923297,187.32,187.26,13.66940171]
[1761918419195,8.32923297,187.31,187.26,5.34016874]
[1761918419391,8.32923297,187.31,187.25,18.11806066]
[1761918419392,9.00923297,187.31,187.25,15.12928112]
[1761918419577,0.68,187.3,187.26,0.28432314]
[1761918419910,9.00923297,187.3,187.24,13.66994853]
[1761918420199,8.32923297,187.29,187.23,5.34085696]
[1761918420401,6.01914772,187.3,187.23,5.34085696]
[1761918420402,8.32923297,187.28,187.23,5.34085696]
[1761918420581,0.68,187.28,187.23,5.34085696]
[1761918420901,0.2,187.34,187.23,5.34085696]
[1761918420902,20.592,187.32,187.28,0.28432314]
[1761918421094,0.2,187.34,187.31,8.32923297]
[1761918421678,0.2,187.34,187.33,13.95172938]
[1761918422576,0.2,187.34,187.33,14.66172938]
[1761918422999,0.2,187.34,187.33,8.61355611]
[1761918423184,0.2,187.34,187.33,13.95172938]
[1761918423386,0.2,187.34,187.33,14.66172938]
[1761918424309,1e-08,187.34,187.33,24.98437439]
[1761918424492,1e-08,187.34,187.33,37.24714142]
[1761918424803,1e-08,187.34,187.33,45.57637439]
[1761918425375,1e-08,187.34,187.33,42.68844669]
[1761918425884,1e-08,187.34,187.33,20.592]
[1761918426109,1e-08,187.34,187.33,41.87030623]
[1761918426305,1e-08,187.34,187.33,47.59593464]
[1761918427021,0.2,187.38,187.35,9.78882769]
[1761918427022,1e-08,187.36,187.35,9.78882769]
[1761918427312,1e-08,187.36,187.35,36.64021644]
[1761918427485,1e-08,187.38,187.36,10.78315083]
[1761918427678,0.2,187.39,187.36,10.78315083]
[1761918427679,1e-08,187.39,187.38,10.07315083]
[1761918427879,1e-08,187.39,187.38,15.5144561]
[1761918428076,1e-08,187.39,187.38,21.56120495]
[1761918428939,0.1,187.46,187.41,9.78882769]
[1761918429111,0.1,187.46,187.42,0.53356098]
[1761918429429,0.1,187.46,187.39,0.71]
[1761918429430,0.1,187.46,187.45,0.28432314]
[1761918429728,0.1,187.46,187.44,5.44130527]
[1761918429908,0.1,187.46,187.44,0.28432314]
[1761918430301,0.1,187.46,187.43,5.33527388]
[1761918430524,0.68,187.45,187.41,0.28432314]
[1761918430820,6.12130527,187.45,187.4,0.14216157]
[1761918431024,6.12130527,187.45,187.4,0.28432314]
[1761918431223,0.1,187.46,187.4,0.28432314]
[1761918431224,0.68,187.44,187.4,0.28432314]
[1761918431823,5.54130527,187.46,187.4,5.72562841]
[1761918432050,3.94559639,187.45,187.4,5.72562841]
[1761918432330,5.44130527,187.43,187.37,5.44130527]
[1761918432500,5.44130527,187.43,187.36,20.592]
[1761918432699,10.07134401,187.42,187.36,5.44130527]
[1761918432996,10.07134401,187.42,187.35,5.33741931]
[1761918432997,0.68,187.42,187.35,6.04741931]
[1761918433324,4.63013809,187.42,187.37,5.44130527]
[1761918433520,0.68,187.41,187.37,5.44130527]
[1761918433842,3.95013809,187.42,187.38,5.44130527]
[1761918434132,20.692,187.46,187.41,5.44130527]
[1761918434332,24.54476546,187.45,187.41,5.44130527]
[1761918434549,3.95276546,187.44,187.41,5.44130527]
[1761918435827,3.95276546,187.44,187.41,0.99432314]
[1761918436135,0.1,187.46,187.43,10.77663045]
[1761918436350,0.1,187.46,187.45,5.44130527]
[1761918436632,0.78,187.46,187.44,0.28432314]
[1761918437143,0.1,187.46,187.44,0.28432314]
[1761918437512,0.1,187.46,187.45,5.72562841]
[1761918437719,0.1,187.46,187.45,16.2244561]
[1761918438231,0.1,187.46,187.45,21.55921203]
[1761918438434,0.1,187.46,187.45,20.84921203]
[1761918439142,0.1,187.46,187.45,21.52921203]
[1761918440234,0.1,187.46,187.45,5.72562841]
[1761918440439,0.1,187.46,187.45,11.74038434]
[1761918441008,0.1,187.46,187.45,5.72562841]
[1761918441206,0.1,187.46,187.45,6.40562841]
[1761918441639,80.18322604,187.68,187.45,21.52921203]
[1761918441640,20.592,187.55,187.45,21.52921203]
[1761918441952,4.66194257,187.54,187.49,5.44130527]
[1761918442163,0.71,187.53,187.5,5.33333333]
[1761918442321,21.302,187.55,187.5,10.7746386]
[1761918442510,0.71,187.54,187.5,10.7746386]
[1761918443009,0.71,187.54,187.5,5.33333333]
[1761918444156,0.71,187.54,187.5,0.28432314]
[1761918444314,11.48361741,187.54,187.48,5.44130527]
[1761918444520,5.44130527,187.53,187.48,5.44130527]
[1761918444761,5.44130527,187.52,187.43,33.92976066]
[1761918445051,5.44130527,187.48,187.42,15.23013296]
[1761918445341,5.44130527,187.48,187.42,9.78882769]
[1761918445519,5.44130527,187.48,187.42,5.44130527]
[1761918445720,0.71,187.47,187.42,5.44130527]
[1761918446236,6.04419297,187.47,187.42,5.44130527]
[1761918446411,6.04419297,187.47,187.42,10.77686158]
[1761918446612,0.71,187.46,187.4,0.14216157]
[1761918446842,6.15130527,187.46,187.4,10.77736182]
[1761918447098,5.44130527,187.45,187.38,10.7779837]
[1761918447272,0.71,187.44,187.39,5.44130527]
[1761918447718,20.592,187.48,187.43,5.44130527]
[1761918447921,20.592,187.48,187.44,5.44130527]
[1761918448153,21.302,187.48,187.43,5.44130527]
[1761918448467,0.71,187.47,187.42,5.619933]
[1761918448650,0.71,187.47,187.43,5.44130527]
[1761918449238,0.71,187.47,187.42,5.72562841]
[1761918449434,0.71,187.47,187.4,0.68]
[1761918449435,5.44130527,187.46,187.41,0.28432314]
[1761918449639,5.44130527,187.46,187.4,5.44130527]
[1761918449838,0.67,187.45,187.4,5.44130527]
[1761918450322,0.67,187.45,187.41,5.33589456]
[1761918450924,20.592,187.48,187.42,5.72562841]
[1761918451129,0.67,187.47,187.42,5.72562841]
[1761918451541,25.92590324,187.48,187.43,5.44130527]
[1761918451542,20.592,187.48,187.43,5.44130527]
[1761918451720,0.67,187.47,187.42,5.72562841]
[1761918452245,0.67,187.47,187.41,5.33589456]
[1761918452445,6.11130527,187.47,187.41,10.77719983]
[1761918452827,6.11130527,187.46,187.41,10.77719983]
[1761918453030,20.592,187.48,187.43,5.44130527]
[1761918453248,0.67,187.47,187.43,5.44130527]
[1761918453743,0.67,187.47,187.42,5.72562841]
[1761918453940,0.67,187.47,187.43,5.44130527]
[1761918454320,0.67,187.47,187.43,5.33532518]
[1761918455035,20.592,187.48,187.43,10.77663045]
[1761918455226,21.262,187.48,187.43,10.77663045]
[1761918455426,20.592,187.48,187.44,6.42562841]
[1761918455829,0.67,187.5,187.46,5.44130527]
[1761918456328,0.67,187.5,187.45,5.44130527]
[1761918456532,4.63612547,187.5,187.45,10.77602107]
[1761918456730,0.67,187.5,187.45,10.77602107]
[1761918457044,3.9669475,187.5,187.46,6.42562841]
[1761918457251,26.70330527,187.52,187.46,5.72562841]
[1761918457451,10.07943217,187.51,187.46,0.28432314]
[1761918457649,3.9681269,187.5,187.47,5.44130527]
[1761918457842,0.67,187.5,187.46,5.44130527]
[1761918458164,0.67,187.49,187.45,10.77602107]
[1761918458656,0.67,187.49,187.45,0.28432314]
[1761918458837,0.67,187.49,187.45,5.72562841]
[1761918459239,3.96890937,187.5,187.47,5.44130527]
[1761918459444,0.67,187.52,187.48,5.44130527]
[1761918459854,3.96870752,187.53,187.48,5.44130527]
[1761918459855,3.96870752,187.53,187.48,0.7]
[1761918460039,3.96870752,187.53,187.48,5.44130527]
[1761918460040,0.67,187.52,187.48,5.44130527]
[1761918460426,3.96870752,187.53,187.5,10.77459487]
[1761918460634,13.32534869,187.62,187.52,5.44130527]
[1761918460945,0.67,187.57,187.51,5.72562841]
[1761918461334,4.63841318,187.57,187.51,0.28432314]
[1761918461655,5.44130527,187.56,187.51,0.28432314]
[1761918461955,3.96841318,187.55,187.51,0.28432314]
[1761918462127,4.63841318,187.55,187.51,0.28432314]
[1761918462327,0.67,187.63,187.54,5.72562841]
[1761918462641,3.96953013,187.62,187.57,0.28432314]
[1761918462831,3.96953013,187.61,187.6,5.44130527]
[1761918463157,3.96953013,187.61,187.59,5.44130527]
[1761918463359,3.96953013,187.61,187.57,0.28432314]
[1761918463541,4.63953013,187.61,187.58,5.44130527]
[1761918464069,0.1,187.64,187.61,0.28432314]
[1761918464353,0.1,187.64,187.63,5.44130527]
[1761918464736,4.06734646,187.64,187.63,10.77094338]
[1761918465063,4.06734646,187.64,187.63,5.32963811]
[1761918465264,0.1,187.64,187.62,5.32992218]
[1761918465443,0.1,187.64,187.63,5.44130527]
[1761918465644,0.1,187.64,187.62,5.32992218]
[1761918466128,0.1,187.64,187.63,5.44130527]
[1761918468162,0.1,187.64,187.63,6.42562841]
[1761918468341,0.1,187.64,187.63,10.77315083]
[1761918468546,0.1,187.64,187.63,21.54409421]
[1761918468733,3.56108324,187.68,187.64,0.28432314]
[1761918469344,3.56108324,187.68,187.66,5.44130527]
[1761918469544,3.56108324,187.68,187.67,5.44130527]
[1761918469752,20.592,187.69,187.67,5.44130527]
[1761918470036,0.67,187.68,187.64,5.72562841]
[1761918470667,0.67,187.68,187.65,5.44130527]
[1761918470836,0.67,187.68,187.64,5.44130527]
[1761918471043,0.67,187.68,187.62,0.98432314]
[1761918471243,11.43958608,187.68,187.62,5.44130527]
[1761918471457,6.11130527,187.68,187.62,5.44130527]
[1761918471769,0.67,187.67,187.62,5.44130527]
[1761918471968,20.592,187.69,187.64,5.44130527]
[1761918472150,20.592,187.69,187.65,5.44130527]
[1761918472151,21.262,187.69,187.65,5.44130527]
[1761918472352,0.77,187.73,187.68,5.44130527]
[1761918472557,6.09680876,187.73,187.68,5.44130527]
[1761918472758,21.362,187.73,187.68,5.44130527]
[1761918473072,21.362,187.73,187.68,10.76951434]
[1761918473254,0.1,187.73,187.72,5.44130527]
[1761918473588,0.1,187.73,187.72,15.5144561]
[1761918473889,0.1,187.73,187.72,0.28432314]
[1761918474060,0.77,187.73,187.72,0.28432314]
[1761918474243,0.1,187.73,187.72,0.98432314]
[1761918474443,0.1,187.73,187.72,6.42562841]
[1761918474679,0.1,187.73,187.72,11.75271129]
[1761918474846,0.1,187.73,187.72,6.42562841]
[1761918475575,0.1,187.73,187.72,0.98432314]
[1761918475882,0.1,187.73,187.72,5.44130527]
[1761918476461,11.53820699,187.73,187.64,0.7]
[1761918476650,11.53820699,187.73,187.65,5.44130527]
[1761918476651,0.77,187.73,187.65,5.44130527]
[1761918476965,0.67,187.72,187.66,5.44130527]
[1761918477873,5.44130527,187.7,187.65,5.44130527]
[1761918478067,5.44130527,187.69,187.65,0.28432314]
[1761918478260,5.44130527,187.68,187.63,5.44130527]
[1761918478461,0.67,187.71,187.61,15.8189427]
[1761918478462,5.44130527,187.69,187.64,5.44130527]
[1761918478666,5.44130527,187.69,187.63,5.32944556]
[1761918478864,6.11130527,187.68,187.63,5.44130527]
[1761918479067,6.11130527,187.68,187.6,10.47882769]
[1761918479270,6.11130527,187.68,187.63,5.44130527]
[1761918479575,6.11130527,187.68,187.6,10.47882769]
[1761918479576,0.67,187.68,187.64,5.44130527]
[1761918479877,6.11130527,187.68,187.63,5.44130527]
[1761918480249,6.11130527,187.68,187.62,5.72562841]
[1761918480474,6.11130527,187.67,187.62,5.72562841]
[1761918480671,11.43981174,187.67,187.62,0.28432314]
[1761918480872,5.44130527,187.63,187.55,0.69]
[1761918481180,6.11130527,187.63,187.58,5.44130527]
[1761918481480,0.67,187.63,187.58,5.44130527]
[1761918481779,13.31897033,187.71,187.6,9.78882769]
[1761918481985,0.67,187.71,187.65,5.44130527]
[1761918482164,0.67,187.7,187.65,5.44130527]
[1761918482668,5.9977002,187.7,187.65,5.44130527]
[1761918482865,0.67,187.7,187.65,10.7702967]
[1761918483080,0.67,187.7,187.66,5.44130527]
[1761918483285,26.03330527,187.67,187.57,0.97432314]
[1761918483596,26.03330527,187.67,187.61,0.28432314]
[1761918483597,5.44130527,187.65,187.61,0.28432314]
[1761918483751,20.592,187.67,187.57,0.97432314]
[1761918483752,5.44130527,187.64,187.57,15.12014472]
[1761918483962,5.44130527,187.63,187.58,5.44130527]
[1761918484291,5.61130527,187.63,187.58,5.44130527]
[1761918484477,0.67,187.63,187.59,5.44130527]
[1761918484658,5.44130527,187.64,187.59,6.13130527]
[1761918484864,5.32878699,187.66,187.59,5.44130527]
[1761918485180,5.44130527,187.64,187.57,0.97432314]
[1761918485351,8.24909613,187.64,187.57,0.97432314]
[1761918485782,8.24909613,187.64,187.57,6.3056484]
[1761918485984,8.91909613,187.65,187.58,0.69]
[1761918486292,8.24909613,187.63,187.57,5.6156484]
[1761918486492,0.67,187.64,187.58,8.24909613]
[1761918486695,8.91909613,187.67,187.62,8.24909613]
[1761918486865,8.91909613,187.67,187.64,13.57831363]
[1761918486866,20.592,187.67,187.64,13.57831363]
[1761918487393,20.592,187.67,187.62,8.93909613]
[1761918487598,20.592,187.67,187.63,8.53341927]
[1761918487797,20.592,187.67,187.63,9.22341927]
[1761918487972,9.01909613,187.73,187.66,8.24909613]
[1761918488160,14.34590824,187.73,187.68,8.24909613]
[1761918488493,0.67,187.72,187.67,8.24909613]
[1761918488695,8.24909613,187.71,187.66,8.24909613]
[1761918488894,0.67,187.72,187.67,8.24909613]
[1761918489111,0.67,187.72,187.67,13.57753987]
[1761918489283,8.24909613,187.7,187.61,35.14008364]
[1761918489595,8.24909613,187.68,187.63,8.53341927]
[1761918489758,8.24909613,187.69,187.64,8.24909613]
[1761918489961,8.24909613,187.71,187.66,8.24909613]
[1761918490360,8.24909613,187.71,187.66,8.93909613]
[1761918490559,8.91909613,187.71,187.66,8.93909613]
[1761918490755,8.24909613,187.71,187.66,8.93909613]
[1761918491097,8.24909613,187.72,187.68,5.32821824]
[1761918491270,8.91909613,187.72,187.67,5.32849335]
[1761918491870,8.91909613,187.72,187.67,0.28432314]
[1761918492286,8.91909613,187.71,187.67,0.28432314]
[1761918492483,8.24909613,187.68,187.64,0.28432314]
[1761918492666,8.24909613,187.67,187.64,0.14216157]
[1761918492867,8.24909613,187.65,187.58,14.01731256]
[1761918493170,8.24909613,187.59,187.49,0.53336177]
[1761918493370,20.592,187.62,187.51,8.24909613]
[1761918493371,8.24909613,187.56,187.51,8.24909613]
[1761918493571,8.24909613,187.56,187.52,0.14216157]
[1761918493782,8.24909613,187.56,187.52,0.69]
[1761918493986,8.24909613,187.55,187.51,0.28432314]
[1761918494197,8.24909613,187.55,187.5,27.60576279]
[1761918494408,8.24909613,187.55,187.5,26.91576279]
[1761918494583,21.262,187.62,187.55,0.28432314]
[1761918494797,8.24909613,187.61,187.56,0.28432314]
[1761918495117,0.67,187.61,187.54,8.24909613]
[1761918495418,8.24909613,187.59,187.55,0.28432314]
[1761918495786,8.91909613,187.59,187.53,14.27157626]
[1761918495984,8.24909613,187.58,187.52,13.58185888]
[1761918496187,8.24909613,187.55,187.52,5.33276275]
[1761918496494,8.24909613,187.58,187.53,0.97432314]
[1761918496691,8.24909613,187.58,187.54,0.69]
[1761918497117,20.592,187.61,187.55,13.58100762]
[1761918497321,20.592,187.64,187.56,9.22341927]
[1761918497491,8.24909613,187.63,187.58,8.24909613]
[1761918498115,28.84109613,187.63,187.58,8.91909613]
[1761918498500,28.84109613,187.63,187.58,14.24991805]
[1761918498698,28.84109613,187.63,187.59,0.67]
[1761918498911,20.592,187.63,187.59,0.28432314]
[1761918499085,21.262,187.68,187.61,8.24909613]
[1761918499422,12.20481663,187.67,187.62,8.24909613]
[1761918499593,8.24909613,187.67,187.62,8.24909613]
[1761918500142,28.84109613,187.68,187.63,8.24909613]
[1761918500314,8.24909613,187.68,187.63,8.91909613]
[1761918500519,8.24909613,187.68,187.64,5.32935408]
[1761918500809,8.91909613,187.7,187.64,14.24845021]
[1761918501252,8.24909613,187.71,187.65,0.67]
[1761918501536,3.96191769,187.7,187.65,8.91909613]
[1761918501719,3.96191769,187.7,187.65,0.95432314]
[1761918501916,0.67,187.69,187.64,0.28432314]
[1761918502122,8.91909613,187.69,187.64,0.28432314]
[1761918502349,8.24909613,187.65,187.59,8.24909613]
[1761918502516,8.24909613,187.63,187.57,13.58043079]
[1761918502706,8.24909613,187.63,187.58,8.91909613]
[1761918502912,5.32893129,187.66,187.58,8.91909613]
[1761918502913,5.99893129,187.66,187.59,0.28432314]
[1761918503147,8.24909613,187.64,187.59,0.95432314]
[1761918503461,8.24909613,187.64,187.59,0.67]
[1761918503645,8.24909613,187.63,187.58,0.14216157]
[1761918503814,8.24909613,187.62,187.58,0.14216157]
[1761918504148,8.24909613,187.62,187.58,0.28432314]
[1761918504356,8.24909613,187.63,187.58,9.20341927]
[1761918504647,8.24909613,187.61,187.55,8.24909613]
[1761918504816,8.24909613,187.61,187.56,0.14216157]
[1761918505020,8.24909613,187.61,187.56,8.24909613]
[1761918505216,8.24909613,187.61,187.56,8.91909613]
[1761918505519,8.91909613,187.61,187.55,13.58100762]
[1761918506618,0.67,187.61,187.55,13.58100762]
[1761918506822,8.91909613,187.61,187.55,13.58100762]
[1761918507458,20.592,187.64,187.56,9.20341927]
[1761918507661,3.97716193,187.63,187.58,8.24909613]
[1761918507831,12.22625806,187.63,187.58,8.24909613]
[1761918508032,3.97716193,187.62,187.59,0.67]
[1761918508330,12.22625806,187.62,187.58,0.28432314]
[1761918508533,8.24909613,187.62,187.58,5.61522869]
[1761918509265,8.24909613,187.62,187.58,6.31522869]
[1761918509445,8.24909613,187.63,187.59,0.7]
[1761918509645,3.97743672,187.62,187.59,0.7]
[1761918509851,3.97743672,187.62,187.58,13.86432482]
[1761918510047,12.22653285,187.62,187.58,0.28432314]
[1761918510254,8.24909613,187.61,187.58,5.3310461]
[1761918510453,25.92108797,187.65,187.57,5.33134296]
[1761918510454,21.302,187.65,187.57,5.33134296]
[1761918510637,8.24909613,187.62,187.57,5.33134296]
[1761918510842,8.24909613,187.61,187.57,5.33134296]
[1761918511146,20.592,187.65,187.6,8.24909613]
[1761918511347,3.97686748,187.64,187.6,8.24909613]
[1761918511756,12.22596361,187.64,187.58,9.23341927]
[1761918511960,3.97686748,187.63,187.58,9.23341927]
[1761918512374,8.24909613,187.64,187.59,0.7]
[1761918512636,0.71,187.64,187.58,0.28432314]
[1761918512847,8.24909613,187.61,187.56,8.24909613]
[1761918513140,8.24909613,187.59,187.56,5.33158771]
[1761918513333,8.24909613,187.6,187.56,5.33158771]
[1761918513538,8.24909613,187.6,187.56,6.03158771]
[1761918514058,8.24909613,187.61,187.56,6.03158771]
[1761918514251,8.24909613,187.62,187.57,8.94909613]
[1761918514448,8.24909613,187.64,187.58,8.53341927]
[1761918514652,8.24909613,187.64,187.59,8.24909613]
[1761918514851,8.24909613,187.64,187.58,9.23341927]
[1761918515251,8.24909613,187.63,187.58,8.53341927]
[1761918515452,0.71,187.64,187.58,0.98432314]
[1761918515762,8.24909613,187.63,187.58,8.53341927]
[1761918515964,8.24909613,187.63,187.59,5.33077456]
[1761918516349,8.24909613,187.61,187.58,0.28432314]
[1761918516552,8.24909613,187.61,187.56,5.33162721]
[1761918516765,8.95909613,187.61,187.56,5.33162721]
[1761918517169,8.24909613,187.61,187.56,14.28072334]
[1761918517469,8.24909613,187.61,187.57,0.7]
[1761918517666,0.71,187.64,187.57,0.98432314]
[1761918517972,8.24909613,187.62,187.57,0.98432314]
[1761918518485,8.24909613,187.61,187.56,5.33158192]
[1761918518676,0.71,187.62,187.57,0.7]
[1761918518677,8.95909613,187.62,187.57,0.7]
[1761918519048,8.24909613,187.61,187.56,5.33158192]
[1761918519272,8.24909613,187.62,187.57,9.23341927]
[1761918519472,3.97884906,187.61,187.57,9.23341927]
[1761918519652,3.97884906,187.61,187.57,0.98432314]
[1761918519853,8.24909613,187.62,187.57,9.23341927]
[1761918520071,8.24909613,187.62,187.57,0.98432314]
[1761918520371,8.24909613,187.62,187.53,0.7]
[1761918520372,8.24909613,187.58,187.53,0.7]
[1761918520677,8.24909613,187.58,187.54,0.28432314]
[1761918520977,8.24909613,187.57,187.53,6.03248013]
[1761918522076,8.24909613,187.59,187.54,0.7]
[1761918522285,0.71,187.61,187.54,8.94909613]
[1761918522485,12.23267323,187.6,187.55,0.28432314]
[1761918522784,8.24909613,187.61,187.55,0.7]
[1761918522985,3.98332763,187.6,187.56,8.24909613]
[1761918523159,3.98332763,187.6,187.55,0.7]
[1761918523160,12.23242376,187.6,187.55,8.94909613]
[1761918523487,3.98332763,187.59,187.55,0.7]
[1761918524367,3.98332763,187.59,187.56,5.33162721]